fUSD/lending_fUSD_20251221
["ID","MTS","AMOUNT","RATE_DAILY","PERIOD"]
[399331453,1766310640541,-500.0,0.00013698,2]
[399331454,1766310640553,-500.0,0.00013698,2]
[399331455,1766310640566,-500.0,0.00013698,2]
[399331456,1766310640578,-500.0,0.00013698,2]
[399331457,1766310640590,-500.0,0.00013698,2]
[399331458,1766310640601,-500.0,0.00013698,2]
[399331459,1766310640614,-500.0,0.00013698,2]
[399331460,1766310640626,-500.0,0.00013698,2]
[399331461,1766310640638,-500.0,0.00013698,2]
[399331462,1766310640649,-500.0,0.00013698,2]
[399331463,1766310640661,-500.0,0.00013698,2]
[399331464,1766310640672,-500.0,0.00013698,2]
[399331465,1766310640685,-500.0,0.00013698,2]
[399331466,1766310640697,-500.0,0.00013698,2]
[399331467,1766310640709,-500.0,0.00013698,2]
[399331468,1766310640720,-500.0,0.00013698,2]
[399331469,1766310640732,-500.0,0.00013698,2]
[399331470,1766310640744,-500.0,0.00013698,2]
[399331471,1766310640755,-500.0,0.00013698,2]
[399331472,1766310640767,-500.0,0.00013698,2]
[399331473,1766310640780,-500.0,0.00013698,2]
[399331474,1766310640796,-500.0,0.00013698,2]
[399331475,1766310640811,-500.0,0.00013698,2]
[399331476,1766310640823,-500.0,0.00013698,2]
[399331477,1766310640834,-500.0,0.00013698,2]
[399331478,1766310640847,-500.0,0.00013698,2]
[399331479,1766310640858,-567.20870026,0.00013698,2]
[399331480,1766310640870,-500.0,0.00013698,2]
[399331481,1766310640885,-500.0,0.00013698,2]
[399331482,1766310640896,-500.0,0.00013698,2]
[399331483,1766310640907,-500.0,0.00013698,2]
[399331484,1766310640919,-500.0,0.00013698,2]
[399331485,1766310640930,-500.0,0.00013698,2]
[399331486,1766310640942,-500.0,0.00013698,2]
[399331487,1766310640954,-500.0,0.00013698,2]
[399331488,1766310640965,-500.0,0.00013698,2]
[399331489,1766310640977,-500.0,0.00013698,2]
[399331490,1766310640989,-500.0,0.00013698,2]
[399331491,1766310641001,-500.0,0.00013698,2]
[399331492,1766310641012,-500.0,0.00013698,2]
[399331493,1766310641024,-500.0,0.00013698,2]
[399331494,1766310641036,-500.0,0.00013698,2]
[399331495,1766310641048,-500.0,0.00013698,2]
[399331496,1766310641059,-500.0,0.00013698,2]
[399331497,1766310641070,-542.9137325,0.00013698,2]
[399331498,1766310641082,-500.0,0.00013698,2]
[399331499,1766310641093,-500.0,0.00013698,2]
[399331500,1766310641105,-500.0,0.00013698,2]
[399331501,1766310641117,-500.0,0.00013698,2]
[399331502,1766310641128,-501.00325997,0.00013698,2]
[399331503,1766310641140,-500.0,0.00013698,2]
[399331504,1766310641151,-500.0,0.00013698,2]
[399331505,1766310641163,-500.0,0.00013698,2]
[399331506,1766310641174,-344.15406571,0.00013698,2]
[399331507,1766310641186,-500.0,0.00013698,2]
[399331508,1766310641197,-500.0,0.00013698,2]
[399331509,1766310641209,-500.0,0.00013698,2]
[399331510,1766310641220,-500.0,0.00013698,2]
[399331511,1766310641231,-500.0,0.00013698,2]
[399331512,1766310641242,-500.0,0.00013698,2]
[399331513,1766310641254,-500.0,0.00013698,2]
[399331514,1766310641265,-500.0,0.00013698,2]
[399331515,1766310641277,-500.0,0.00013698,2]
[399331516,1766310641289,-503.22866963,0.00013698,2]
[399331517,1766310641301,-500.0,0.00013698,2]
[399331518,1766310641312,-500.0,0.00013698,2]
[399331519,1766310641323,-500.0,0.00013698,2]
[399331520,1766310641335,-500.0,0.00013698,2]
[399331521,1766310641346,-500.0,0.00013698,2]
[399331522,1766310641357,-500.0,0.00013698,2]
[399331523,1766310641368,-500.0,0.00013698,2]
[399331524,1766310641379,-500.0,0.00013698,2]
[399331525,1766310641390,-500.0,0.00013698,2]
[399331526,1766310641401,-500.0,0.00013698,2]
[399331527,1766310641412,-500.0,0.00013698,2]
[399331528,1766310641423,-500.0,0.00013698,2]
[399331529,1766310641434,-500.0,0.00013698,2]
[399331530,1766310641445,-500.0,0.00013698,2]
[399331531,1766310641456,-500.0,0.00013698,2]
[399331532,1766310641467,-500.0,0.00013698,2]
[399331533,1766310641480,-500.0,0.00013698,2]
[399331534,1766310641491,-500.0,0.00013698,2]
[399331535,1766310641502,-500.0,0.00013698,2]
[399331536,1766310641514,-500.0,0.00013698,2]
[399331537,1766310641524,-500.0,0.00013698,2]
[399331538,1766310641535,-500.0,0.00013698,2]
[399331539,1766310641546,-500.0,0.00013698,2]
[399331540,1766310641558,-511.95166241,0.00013698,2]
[399331541,1766310641569,-500.0,0.00013698,2]
[399331542,1766310641580,-500.0,0.00013698,2]
[399331543,1766310641591,-500.0,0.00013698,2]
[399331544,1766310641601,-500.0,0.00013698,2]
[399331545,1766310641612,-500.0,0.00013698,2]
[399331546,1766310641623,-500.0,0.00013698,2]
[399331547,1766310641634,-500.0,0.00013698,2]
[399331548,1766310641645,-500.0,0.00013698,2]
[399331549,1766310641656,-500.0,0.00013698,2]
[399331550,1766310641668,-500.0,0.00013698,2]
[399331551,1766310641679,-500.0,0.00013698,2]
[399331552,1766310641690,-500.0,0.00013698,2]
[399331553,1766310641701,-500.0,0.00013698,2]
[399331554,1766310641711,-500.0,0.00013698,2]
[399331555,1766310641723,-500.0,0.00013698,2]
[399331556,1766310641733,-500.0,0.00013698,2]
[399331557,1766310641744,-500.0,0.00013698,2]
[399331558,1766310641755,-500.0,0.00013698,2]
[399331559,1766310641766,-500.0,0.00013698,2]
[399331560,1766310641776,-500.0,0.00013698,2]
[399331561,1766310641788,-500.0,0.00013698,2]
[399331562,1766310641799,-500.0,0.00013698,2]
[399331563,1766310641814,-502.7855108,0.00013698,2]
[399331564,1766310641825,-500.0,0.00013698,2]
[399331565,1766310641840,-500.0,0.00013698,2]
[399331566,1766310641852,-500.0,0.00013698,2]
[399331567,1766310641866,-500.0,0.00013698,2]
[399331568,1766310641878,-500.0,0.00013698,2]
[399331569,1766310641891,-166.66,0.00013699,2]
[399331570,1766310641904,-196.43,0.00013699,2]
[399331571,1766310641918,-13733.1,0.00013699,2]
[399331572,1766310641928,-151.0,0.00013699,2]
[399331573,1766310641940,-500.0,0.00013699,2]
[399331574,1766310641952,-500.0,0.00013699,2]
[399331575,1766310641965,-500.0,0.00013699,2]
[399331576,1766310641978,-500.0,0.00013699,2]
[399331577,1766310641990,-500.0,0.00013699,2]
[399331578,1766310642002,-500.0,0.00013699,2]
[399331579,1766310642016,-500.0,0.00013699,2]
[399331580,1766310642027,-500.0,0.00013699,2]
[399331581,1766310642039,-500.0,0.00013699,2]
[399331582,1766310642050,-500.0,0.00013699,2]
[399331583,1766310642061,-500.0,0.00013699,2]
[399331584,1766310642075,-500.0,0.00013699,2]
[399331585,1766310642088,-500.0,0.00013699,2]
[399331586,1766310642099,-500.0,0.00013699,2]
[399331587,1766310642112,-500.0,0.00013699,2]
[399331588,1766310642124,-500.0,0.00013699,2]
[399331589,1766310642135,-500.0,0.00013699,2]
[399331590,1766310642148,-381.83574081,0.00013699,2]
[399331591,1766310642160,-500.0,0.00013699,2]
[399331592,1766310642173,-500.0,0.00013699,2]
[399331593,1766310642185,-500.0,0.00013699,2]
[399331594,1766310642196,-500.0,0.00013699,2]
[399331595,1766310642208,-500.0,0.00013699,2]
[399331596,1766310642219,-500.0,0.00013699,2]
[399331597,1766310642231,-500.0,0.00013699,2]
[399331598,1766310642242,-500.0,0.00013699,2]
[399331599,1766310642253,-500.0,0.00013699,2]
[399331600,1766310642264,-500.0,0.00013699,2]
[399331605,1766310643049,-250.15138245,0.00013699,2]
[399331606,1766310643059,-1470.84,0.00013711,2]
[399331607,1766310643069,-10955.28690622,0.00013742,2]
[399331608,1766310643078,-1224.28442056,0.00013742,2]
[399331609,1766310643087,-1473.89,0.00013809,2]
[399331610,1766310643097,-501.0380524,0.00013821,2]
[399331611,1766310643106,-208.16009032,0.00013821,2]
[399331612,1766310643115,-1001.10835573,0.00013821,2]
[399331613,1766310643125,-572.75082077,0.00013821,2]
[399331614,1766310643135,-1000.0,0.00013821,2]
[399331615,1766310643144,-535.22474582,0.00013821,2]
[399331616,1766310643154,-1000.0,0.00013821,2]
[399331617,1766310643163,-1000.0,0.00013821,2]
[399331618,1766310643174,-1000.0,0.00013821,2]
[399331619,1766310643184,-1000.0,0.00013821,2]
[399331620,1766310643193,-1000.0,0.00013821,2]
[399331621,1766310643203,-1000.0,0.00013821,2]
[399331622,1766310643214,-1000.0,0.00013821,2]
[399331623,1766310643224,-1000.0,0.00013821,2]
[399331624,1766310643233,-1000.0,0.00013821,2]
[399331625,1766310643243,-1000.0,0.00013821,2]
[399331626,1766310643256,-1000.0,0.00013821,2]
[399331627,1766310643265,-1001.62490087,0.00013821,2]
[399331628,1766310643275,-789.33467407,0.00013821,2]
[399331629,1766310643285,-627.6344399,0.00013821,2]
[399331630,1766310643295,-1000.0,0.00013821,2]
[399331631,1766310643304,-1000.0,0.00013821,2]
[399331632,1766310643314,-484.06013596,0.00013821,2]
[399331633,1766310643323,-1000.0,0.00013821,2]
[399331634,1766310643334,-594.78120498,0.00013821,2]
[399331635,1766310643343,-1000.0,0.00013821,2]
[399331636,1766310643353,-235.55154497,0.00013821,2]
[399331637,1766310643364,-514.63903632,0.00013821,2]
[399331638,1766310643373,-453.53849539,0.00013821,2]
[399331639,1766310643382,-166.66,0.00013836,2]
[399331640,1766310643392,-500.0,0.00013836,2]
[399331641,1766310643401,-166.66,0.00013941,2]
[399331642,1766310643411,-200.0,0.00013958,2]
[399331643,1766310643420,-166.66,0.00013973,2]
[399331644,1766310643430,-651.0,0.00013988,2]
[399331645,1766310643440,-200.0,0.00014083,2]
[399331646,1766310643450,-200.0,0.00014083,2]
[399331647,1766310643459,-500.0,0.00014083,2]
[399331648,1766310643468,-1473.89,0.00014083,2]
[399331649,1766310643478,-166.66,0.0001411,2]
[399331650,1766310643487,-416.08741311,0.00014128,2]
[399331651,1766310643498,-686.1767961,0.00014193,2]
[399331652,1766310643508,-166.66,0.00014247,2]
[399331653,1766310643518,-10955.28690622,0.00014268,2]
[399331654,1766310643528,-166.66,0.00014347,2]
[399331655,1766310643538,-1473.89,0.00014357,2]
[399331656,1766310643547,-1500.0,0.00014368,2]
[399331657,1766310643557,-1500.0,0.00014368,2]
[399331658,1766310643567,-1500.0,0.00014368,2]
[399331659,1766310643578,-1500.0,0.00014368,2]
[399331660,1766310643588,-1504.443568,0.00014368,2]
[399331661,1766310643598,-1500.0,0.00014368,2]
[399331662,1766310643608,-1500.0,0.00014368,2]
[399331663,1766310643618,-1211.67995912,0.00014368,2]
[399331664,1766310643628,-644.26340267,0.00014368,2]
[399331665,1766310643637,-366.15226393,0.00014368,2]
[399331666,1766310643647,-1501.58945381,0.00014368,2]
[399331667,1766310643657,-503.74441146,0.00014368,2]
[399331668,1766310643666,-1500.0,0.00014368,2]
[399331669,1766310643675,-1500.0,0.00014368,2]
[399331670,1766310643685,-1500.0,0.00014368,2]
[399331671,1766310643694,-1500.0,0.00014368,2]
[399331672,1766310643703,-500.0,0.00014373,2]
[399331673,1766310643713,-500.0,0.00014373,2]
[399331674,1766310643722,-448.45149999,0.00014374,2]
[399331675,1766310643731,-575.35496106,0.00014374,2]
[399331676,1766310643741,-19860.72422432,0.00014374,2]
[399331677,1766310643750,-151.0,0.00014375,2]
[399331678,1766310643759,-651.445474,0.00014375,2]
[399331679,1766310643769,-651.445474,0.00014375,2]
[399331680,1766310643778,-651.445474,0.00014375,2]
[399331681,1766310643787,-651.445474,0.00014375,2]
[399331682,1766310643796,-508.949884,0.00014375,2]
[399331683,1766310643807,-508.949884,0.00014375,2]
[399331684,1766310643817,-508.949884,0.00014375,2]
[399331685,1766310643826,-508.949884,0.00014375,2]
[399331686,1766310643836,-151.0,0.00014375,2]
[399331687,1766310643845,-151.0,0.00014375,2]
[399331688,1766310643854,-166.66,0.00014384,2]
[399331689,1766310643864,-152.449645,0.0001444,2]
[399331690,1766310643873,-15203.71582164,0.0001444,2]
[399331691,1766310643883,-287.0,0.00014509,2]
[399331692,1766310643892,-151.0,0.00014523,2]
[399331693,1766310643901,-612.0,0.00014523,2]
[399331694,1766310643911,-3456.0,0.00014523,2]
[399331695,1766310643921,-1629.451,0.00014523,2]
[399331696,1766310643930,-1326.0,0.00014523,2]
[399331697,1766310643939,-1262.0,0.00014523,2]
[399331698,1766310643948,-518.0,0.00014523,2]
[399331699,1766310643957,-927.291,0.00014523,2]
[399331700,1766310643968,-1197.0,0.00014523,2]
[399331701,1766310643977,-2429.0,0.00014523,2]
[399331702,1766310643987,-581.965,0.00014523,2]
[399331703,1766310643998,-6529.0,0.00014523,2]
[399331704,1766310644010,-1224.28442056,0.00014532,2]
[399331705,1766310644019,-2351.0,0.00014569,2]
[399331706,1766310644029,-433.0,0.00014616,2]
[399331707,1766310644039,-200.0,0.00014631,2]
[399331708,1766310644048,-200.0,0.00014631,2]
[399331709,1766310644058,-500.0,0.00014631,2]
[399331710,1766310644068,-1473.89,0.00014631,2]
[399331711,1766310644078,-151.0,0.00014715,2]
[399331712,1766310644087,-151.0,0.0001472,2]
[399331713,1766310644101,-7576.0,0.00014789,2]
[399331714,1766310644120,-10955.28690622,0.00014795,2]
[399331715,1766310644130,-686.1767961,0.0001487,2]
[399331716,1766310644139,-19860.72422432,0.0001488,2]
[399331717,1766310644149,-1473.89,0.00014905,2]
[399331718,1766310644159,-2000.0,0.00014916,2]
[399331719,1766310644169,-1138.30499273,0.00014916,2]
[399331720,1766310644178,-1834.49283525,0.00014916,2]
[399331721,1766310644188,-2000.0,0.00014916,2]
[399331722,1766310644198,-508.91462185,0.00014916,2]
[399331723,1766310644208,-2000.0,0.00014916,2]
[399331724,1766310644218,-503.75804982,0.00014916,2]
[399331725,1766310644227,-2000.0,0.00014916,2]
[399331726,1766310644236,-2000.0,0.00014916,2]
[399331727,1766310644246,-502.34827947,0.00014916,2]
[399331728,1766310644256,-3264.83,0.0001504,2]
[399331729,1766310644265,-153.796978,0.0001504,2]
[399331730,1766310644282,-151.0,0.0001504,2]
[399331731,1766310644297,-151.0,0.0001504,2]
[399331732,1766310644307,-157.119013,0.0001504,2]
[399331733,1766310644317,-151.0,0.0001504,2]
[399331734,1766310644327,-151.0,0.0001504,2]
[399331735,1766310644337,-151.0,0.00015068,2]
[399331736,1766310644347,-151.0,0.00015068,2]
[399331737,1766310644357,-151.0,0.00015068,2]
[399331738,1766310644366,-500.0,0.00015122,2]
[399331739,1766310644377,-500.0,0.00015122,2]
[399331740,1766310644386,-500.0,0.00015122,2]
[399331741,1766310644395,-500.0,0.00015122,2]
[399331742,1766310644405,-500.0,0.00015122,2]
[399331743,1766310644415,-510.69307451,0.00015122,2]
[399331744,1766310644425,-207.4,0.00015178,2]
[399331745,1766310644434,-200.0,0.00015179,2]
[399331746,1766310644444,-1473.89,0.00015179,2]
[399331747,1766310644453,-151.0,0.00015195,2]
[399331748,1766310644463,-151.0,0.00015195,2]
[399331749,1766310644473,-151.0,0.00015195,2]
[399331750,1766310644483,-151.0,0.00015195,2]
[399331751,1766310644492,-5450.0,0.00015195,2]
[399331752,1766310644502,-1000.0,0.00015195,2]
[399331753,1766310644511,-151.0,0.00015195,2]
[399331754,1766310644521,-151.0,0.00015195,2]
[399331755,1766310644531,-1000.0,0.00015195,2]
[399331756,1766310644542,-1000.0,0.00015195,2]
[399331757,1766310644551,-250.0,0.00015195,2]
[399331758,1766310644561,-1000.0,0.00015195,2]
[399331759,1766310644571,-1000.0,0.00015195,2]
[399331760,1766310644581,-250.0,0.00015195,2]
[399331761,1766310644591,-1000.0,0.00015195,2]
[399331762,1766310644601,-1000.0,0.00015195,2]
[399331763,1766310644611,-250.0,0.00015195,2]
[399331764,1766310644620,-1000.0,0.00015195,2]
[399331765,1766310644630,-1000.0,0.00015195,2]
[399331766,1766310644639,-261.07194788,0.00015195,2]
[399331767,1766310644649,-1000.0,0.00015195,2]
[399331768,1766310644658,-1000.0,0.00015195,2]
[399331769,1766310644668,-1000.0,0.00015195,2]
[399331770,1766310644677,-1000.0,0.00015195,2]
[399331771,1766310644687,-1000.0,0.00015195,2]
[399331772,1766310644696,-548.92065365,0.00015195,2]
[399331773,1766310644706,-500.0,0.00015195,2]
[399331774,1766310644715,-5000.0,0.00015195,2]
[399331775,1766310644724,-3326.99572763,0.00015195,2]
[399331776,1766310644734,-500.0,0.00015195,2]
[399331777,1766310644743,-500.0,0.00015195,2]
[399331778,1766310644753,-500.0,0.00015195,2]
[399331779,1766310644762,-500.0,0.00015195,2]
[399331780,1766310644771,-500.0,0.00015195,2]
[399331781,1766310644783,-500.0,0.00015195,2]
[399331782,1766310644793,-500.0,0.00015195,2]
[399331783,1766310644808,-500.0,0.00015195,2]
[399331784,1766310644820,-500.0,0.00015195,2]
[399331785,1766310644830,-721.12765535,0.00015195,2]
[399331786,1766310644839,-500.0,0.00015195,2]
[399331787,1766310644851,-500.0,0.00015195,2]
[399331788,1766310644860,-500.0,0.00015195,2]
[399331789,1766310644870,-500.0,0.00015195,2]
[399331790,1766310644879,-157.67856935,0.00015195,2]
[399331791,1766310644890,-500.0,0.00015195,2]
[399331792,1766310644899,-500.0,0.00015195,2]
[399331793,1766310644908,-500.0,0.00015195,2]
[399331794,1766310644918,-500.0,0.00015195,2]
[399331795,1766310644927,-201.93286099,0.00015195,2]
[399331796,1766310644936,-500.0,0.00015195,2]
[399331797,1766310644946,-500.0,0.00015195,2]
[399331798,1766310644955,-553.64373807,0.00015195,2]
[399331799,1766310644964,-500.0,0.00015195,2]
[399331800,1766310644973,-500.0,0.00015195,2]
[399331801,1766310644983,-500.0,0.00015195,2]
[399331802,1766310644992,-500.0,0.00015195,2]
[399331803,1766310645002,-500.0,0.00015195,2]
[399331804,1766310645012,-500.0,0.00015195,2]
[399331805,1766310645021,-500.0,0.00015195,2]
[399331806,1766310645031,-514.74329666,0.00015195,2]
[399331807,1766310645042,-500.0,0.00015195,2]
[399331808,1766310645052,-500.0,0.00015195,2]
[399331809,1766310645061,-500.0,0.00015195,2]
[399331810,1766310645072,-500.0,0.00015195,2]
[399331811,1766310645083,-500.0,0.00015195,2]
[399331812,1766310645092,-500.0,0.00015195,2]
[399331813,1766310645101,-500.0,0.00015195,2]
[399331814,1766310645110,-500.0,0.00015195,2]
[399331815,1766310645119,-500.0,0.00015195,2]
[399331816,1766310645128,-500.0,0.00015195,2]
[399331817,1766310645138,-5000.0,0.00015195,2]
[399331818,1766310645147,-500.0,0.00015195,2]
[399331819,1766310645156,-5000.0,0.00015195,2]
[399331820,1766310645166,-500.0,0.00015195,2]
[399331821,1766310645175,-3904.265724,0.00015195,2]
[399331822,1766310645185,-500.0,0.00015195,2]
[399331823,1766310645194,-1000.0,0.00015195,2]
[399331824,1766310645203,-500.0,0.00015195,2]
[399331825,1766310645213,-578.20924308,0.00015195,2]
[399331826,1766310645222,-1000.0,0.00015195,2]
[399331827,1766310645232,-1000.0,0.00015195,2]
[399331828,1766310645242,-1000.0,0.00015195,2]
[399331829,1766310645252,-151.0,0.00015195,2]
[399331830,1766310645261,-250.0,0.00015195,2]
[399331831,1766310645271,-1000.0,0.00015195,2]
[399331832,1766310645281,-250.0,0.00015195,2]
[399331833,1766310645292,-1000.0,0.00015195,2]
[399331834,1766310645302,-250.0,0.00015195,2]
[399331835,1766310645312,-1000.0,0.00015195,2]
[399331836,1766310645321,-300.0,0.00015195,2]
[399331837,1766310645331,-250.0,0.00015195,2]
[399331838,1766310645341,-1000.0,0.00015195,2]
[399331839,1766310645351,-250.0,0.00015195,2]
[399331840,1766310645361,-1000.0,0.00015195,2]
[399331841,1766310645370,-2000.0,0.00015195,2]
[399331842,1766310645379,-250.0,0.00015195,2]
[399331843,1766310645388,-1000.0,0.00015195,2]
[399331844,1766310645397,-2000.0,0.00015195,2]
[399331845,1766310645406,-1000.0,0.00015195,2]
[399331846,1766310645415,-2000.0,0.00015195,2]
[399331847,1766310645425,-250.0,0.00015195,2]
[399331848,1766310645434,-151.0,0.00015195,2]
[399331849,1766310645443,-1000.0,0.00015195,2]
[399331850,1766310645453,-250.0,0.00015195,2]
[399331851,1766310645463,-1000.0,0.00015195,2]
[399331852,1766310645472,-2000.0,0.00015195,2]
[399331853,1766310645482,-250.0,0.00015195,2]
[399331854,1766310645491,-2000.0,0.00015195,2]
[399331855,1766310645501,-250.0,0.00015195,2]
[399331856,1766310645511,-2000.0,0.00015195,2]
[399331857,1766310645520,-250.0,0.00015195,2]
[399331858,1766310645529,-2000.0,0.00015195,2]
[399331859,1766310645539,-250.0,0.00015195,2]
[399331860,1766310645548,-831.97102116,0.00015195,2]
[399331861,1766310645558,-620.0,0.00015195,2]
[399331862,1766310645567,-200.0,0.00015195,2]
[399331863,1766310645575,-207.4,0.00015195,2]
[399331864,1766310645584,-215.0738,0.00015195,2]
[399331865,1766310645594,-223.0315306,0.00015195,2]
[399331866,1766310645603,-231.28369723,0.00015195,2]
[399331867,1766310645612,-239.84119403,0.00015195,2]
[399331868,1766310645621,-248.71531821,0.00015195,2]
[399331869,1766310645630,-257.91778498,0.00015195,2]
[399331870,1766310645639,-267.46074303,0.00015195,2]
[399331871,1766310645648,-500.0,0.00015209,2]
[399331872,1766310645658,-500.0,0.00015209,2]
[399331873,1766310645667,-151.0,0.0001521,2]
[399331874,1766310645676,-651.445474,0.0001521,2]
[399331875,1766310645685,-651.445474,0.0001521,2]
[399331876,1766310645694,-651.445474,0.0001521,2]
[399331877,1766310645704,-651.445474,0.0001521,2]
[399331878,1766310645920,-508.949884,0.0001521,2]
[399331879,1766310645961,-508.949884,0.0001521,2]
[399331880,1766310645971,-508.949884,0.0001521,2]
[399331881,1766310645981,-508.949884,0.0001521,2]
[399331882,1766310645990,-151.0,0.0001521,2]
[399331883,1766310646000,-196.117495,0.0001521,2]
[399331884,1766310646010,-1470.84,0.00015234,2]
[399331885,1766310646019,-150.0,0.00015288,2]
[399331886,1766310646029,-150.0,0.00015288,2]
[399331887,1766310646038,-150.0,0.00015288,2]
[399331888,1766310646048,-151.28381653,0.00015288,2]
[399331889,1766310646059,-150.0,0.00015288,2]
[399331890,1766310646069,-150.0,0.00015288,2]
[399331891,1766310646080,-150.0,0.00015288,2]
[399331892,1766310646089,-150.0,0.00015288,2]
[399331893,1766310646099,-150.0,0.00015288,2]
[399331894,1766310646108,-150.0,0.00015288,2]
[399331895,1766310646118,-150.0,0.00015288,2]
[399331896,1766310646127,-150.0,0.00015288,2]
[399331897,1766310646137,-150.0,0.00015288,2]
[399331898,1766310646146,-150.0,0.00015288,2]
[399331899,1766310646155,-150.89972091,0.00015288,2]
[399331900,1766310646164,-150.0,0.00015288,2]
[399331901,1766310646173,-10955.28690622,0.00015321,2]
[399331902,1766310646183,-1224.28442056,0.00015321,2]
[399331903,1766310646192,-150.0,0.00015324,2]
[399331904,1766310646201,-150.0,0.00015328,2]
[399331905,1766310646210,-150.0,0.00015336,2]
[399331906,1766310646220,-150.0,0.00015358,2]
[399331907,1766310646229,-150.0,0.0001536,2]
[399331908,1766310646239,-150.0,0.00015369,2]
[399331909,1766310646250,-150.0,0.00015369,2]
[399331910,1766310646259,-150.0,0.00015373,2]
[399331911,1766310646269,-19860.72422432,0.00015385,2]
[399331912,1766310646278,-150.0,0.00015385,2]
[399331913,1766310646288,-151.0,0.00015385,2]
[399331914,1766310646298,-500.0,0.00015385,2]
[399331915,1766310646307,-150.0,0.00015396,2]
[399331916,1766310646317,-150.0,0.00015409,2]
[399331917,1766310646329,-150.0,0.00015429,2]
[399331918,1766310646338,-150.0,0.00015432,2]
[399331919,1766310646348,-150.0,0.00015433,2]
[399331920,1766310646357,-500.0,0.00015444,2]
[399331921,1766310646367,-500.0,0.00015444,2]
[399331922,1766310646377,-150.0,0.00015449,2]
[399331923,1766310646386,-150.0,0.00015449,2]
[399331924,1766310646395,-1473.89,0.00015453,2]
[399331925,1766310646404,-150.0,0.00015458,2]
[399331926,1766310646413,-651.445474,0.00015464,2]
[399331927,1766310646423,-651.445474,0.00015464,2]
[399331928,1766310646432,-651.445474,0.00015464,2]
[399331929,1766310646441,-651.445474,0.00015464,2]
[399331930,1766310646452,-508.949884,0.00015464,2]
[399331931,1766310646462,-508.949884,0.00015464,2]
[399331932,1766310646471,-508.949884,0.00015464,2]
[399331933,1766310646480,-508.949884,0.00015464,2]
[399331934,1766310646490,-151.0,0.00015464,2]
[399331935,1766310646499,-2500.0,0.00015464,2]
[399331936,1766310646509,-2500.0,0.00015464,2]
[399331937,1766310646520,-2500.0,0.00015464,2]
[399331938,1766310646530,-2500.0,0.00015464,2]
[399331939,1766310646540,-2500.0,0.00015464,2]
[399331940,1766310646550,-150.0,0.00015468,2]
[399331941,1766310646560,-150.0,0.00015482,2]
[399331942,1766310646570,-150.0,0.0001549,2]
[399331943,1766310646579,-150.0,0.000155,2]
[399331944,1766310646589,-150.0,0.00015505,2]
[399331945,1766310646598,-150.0,0.0001553,2]
[399331946,1766310646607,-150.0,0.0001553,2]
[399331947,1766310646617,-150.0,0.0001553,2]
[399331948,1766310646626,-150.0,0.0001553,2]
[399331949,1766310646637,-150.0,0.00015541,2]
[399331950,1766310646646,-150.0,0.00015542,2]
[399331951,1766310646656,-686.1767961,0.00015547,2]
[399331952,1766310646666,-150.0,0.00015571,2]
[399331953,1766310646678,-150.0,0.00015571,2]
[399331954,1766310646689,-150.0,0.00015571,2]
[399331955,1766310646699,-150.0,0.00015571,2]
[399331956,1766310646708,-150.0,0.00015577,2]